[Event "*** SCC Grand Prix: Titled Tuesday Blitz"]
[Site "Chess.com"]
[Date "2020.08.25"]
[Round "10"]
[White "karinachess1"]
[Black "Gabrielian_Artur"]
[Result "0-1"]
[WhiteElo "2489"]
[BlackElo "2700"]
[TimeControl "180+1"]
[EndTime "12:00:09 PDT"]
[Termination "Gabrielian_Artur won on time"]

1. c4 {[%clk 0:03:00.9]} 1... e5 {[%clk 0:02:59]} 2. Nc3 {[%clk 0:03:00]} 2...
Bb4 {[%clk 0:02:58.9]} 3. Qc2 {[%clk 0:02:57.9]} 3... Nf6 {[%clk 0:02:56.7]} 4.
Nf3 {[%clk 0:02:54.6]} 4... Qe7 {[%clk 0:02:53.3]} 5. a3 {[%clk 0:02:51.2]} 5...
Bxc3 {[%clk 0:02:53]} 6. Qxc3 {[%clk 0:02:52.1]} 6... d6 {[%clk 0:02:50.4]} 7.
d3 {[%clk 0:02:42.2]} 7... h6 {[%clk 0:02:49.4]} 8. e3 {[%clk 0:02:37]} 8... O-O
{[%clk 0:02:47.6]} 9. Be2 {[%clk 0:02:32.1]} 9... c5 {[%clk 0:02:45.5]} 10. O-O
{[%clk 0:02:14]} 10... a5 {[%clk 0:02:45.1]} 11. b3 {[%clk 0:01:48.2]} 11... Nc6
{[%clk 0:02:44.2]} 12. Bb2 {[%clk 0:01:46.7]} 12... b6 {[%clk 0:02:29.5]} 13.
Rfe1 {[%clk 0:01:43]} 13... Bg4 {[%clk 0:02:26.3]} 14. h3 {[%clk 0:01:42.3]}
14... Bh5 {[%clk 0:02:26]} 15. d4 {[%clk 0:01:24.7]} 15... Ne4 {[%clk 0:01:48]}
16. Qc2 {[%clk 0:01:19.8]} 16... Bg6 {[%clk 0:01:44.5]} 17. Bd3 {[%clk
0:01:11.4]} 17... f5 {[%clk 0:01:39.7]} 18. dxe5 {[%clk 0:01:04.3]} 18... dxe5
{[%clk 0:01:28]} 19. Nd2 {[%clk 0:00:37.8]} 19... Nxd2 {[%clk 0:01:00.4]} 20.
Qxd2 {[%clk 0:00:37.6]} 20... Rad8 {[%clk 0:01:00.3]} 21. Qe2 {[%clk 0:00:35.7]}
21... e4 {[%clk 0:00:38.9]} 22. Bc2 {[%clk 0:00:35]} 22... Ne5 {[%clk
0:00:36.8]} 23. Rad1 {[%clk 0:00:30.6]} 23... Nf7 {[%clk 0:00:21.2]} 24. Rxd8
{[%clk 0:00:26.5]} 24... Rxd8 {[%clk 0:00:21.3]} 25. Rd1 {[%clk 0:00:27.1]}
25... Qg5 {[%clk 0:00:18.3]} 26. Rxd8+ {[%clk 0:00:17.9]} 26... Qxd8 {[%clk
0:00:17.7]} 27. Qd1 {[%clk 0:00:15.7]} 27... Qxd1+ {[%clk 0:00:17.6]} 28. Bxd1
{[%clk 0:00:16.6]} 28... Kf8 {[%clk 0:00:15.8]} 29. Bc3 {[%clk 0:00:15.5]} 29...
Nd6 {[%clk 0:00:13.2]} 30. Kf1 {[%clk 0:00:08.5]} 30... Bf7 {[%clk 0:00:13.1]}
31. Ke1 {[%clk 0:00:08.2]} 31... g5 {[%clk 0:00:13]} 32. Kd2 {[%clk 0:00:07.9]}
32... a4 {[%clk 0:00:13.2]} 33. bxa4 {[%clk 0:00:06.6]} 33... Nxc4+ {[%clk
0:00:12.3]} 34. Kc1 {[%clk 0:00:06.4]} 34... Ke7 {[%clk 0:00:12]} 35. Bb3 {[%clk
0:00:04.9]} 35... Nxa3 {[%clk 0:00:09.6]} 36. Bxf7 {[%clk 0:00:03.3]} 36... Kxf7
{[%clk 0:00:09.5]} 37. a5 {[%clk 0:00:03.5]} 37... bxa5 {[%clk 0:00:09.4]} 38.
Bxa5 {[%clk 0:00:04.4]} 38... Nc4 {[%clk 0:00:09]} 39. Bc7 {[%clk 0:00:04.3]}
39... Ke6 {[%clk 0:00:09.2]} 40. Kc2 {[%clk 0:00:03.9]} 40... Ne5 {[%clk
0:00:09.5]} 41. Ba5 {[%clk 0:00:02.2]} 41... Kd5 {[%clk 0:00:09.4]} 42. Bc3
{[%clk 0:00:01.4]} 42... h5 {[%clk 0:00:09.6]} 0-1

[Event "*** SCC Grand Prix: Titled Tuesday Blitz"]
[Site "Chess.com"]
[Date "2020.08.25"]
[Round "10"]
[White "GoldenShare"]
[Black "RobPeresian"]
[Result "0-1"]
[WhiteElo "2484"]
[BlackElo "2392"]
[TimeControl "180+1"]
[EndTime "12:00:11 PDT"]
[Termination "RobPeresian won by resignation"]

1. d4 {[%clk 0:02:55.8]} 1... d5 {[%clk 0:02:57.9]} 2. Bf4 {[%clk 0:02:54.4]}
2... c6 {[%clk 0:02:55]} 3. e3 {[%clk 0:02:49]} 3... Qb6 {[%clk 0:02:51.6]} 4.
c4 {[%clk 0:02:43.9]} 4... Nf6 {[%clk 0:02:46.4]} 5. Qb3 {[%clk 0:02:29.1]} 5...
Bf5 {[%clk 0:02:33]} 6. Nc3 {[%clk 0:02:23.4]} 6... e6 {[%clk 0:02:31.5]} 7. c5
{[%clk 0:02:23.5]} 7... Qxb3 {[%clk 0:02:26.1]} 8. axb3 {[%clk 0:02:24.4]} 8...
a6 {[%clk 0:02:22.4]} 9. h3 {[%clk 0:02:21.2]} 9... Nbd7 {[%clk 0:02:18.5]} 10.
b4 {[%clk 0:02:21.6]} 10... Rc8 {[%clk 0:02:13.9]} 11. Nf3 {[%clk 0:02:20.7]}
11... h6 {[%clk 0:02:12.8]} 12. Be2 {[%clk 0:02:20.9]} 12... Be7 {[%clk
0:02:12.6]} 13. O-O {[%clk 0:02:19]} 13... O-O {[%clk 0:02:12.6]} 14. Na4 {[%clk
0:02:13.5]} 14... Ne4 {[%clk 0:02:06.2]} 15. Rfd1 {[%clk 0:02:08.2]} 15... Rfe8
{[%clk 0:02:02.3]} 16. Ne5 {[%clk 0:02:08]} 16... Nef6 {[%clk 0:01:52.1]} 17. f3
{[%clk 0:02:04.1]} 17... Nxe5 {[%clk 0:01:51.5]} 18. Bxe5 {[%clk 0:02:05]} 18...
Nd7 {[%clk 0:01:51.7]} 19. Bh2 {[%clk 0:02:05.4]} 19... Bf6 {[%clk 0:01:40.6]}
20. g4 {[%clk 0:01:55.2]} 20... Bc2 {[%clk 0:01:37.9]} 21. Rd2 {[%clk
0:01:43.9]} 21... Bxa4 {[%clk 0:01:34.8]} 22. Rxa4 {[%clk 0:01:44.8]} 22... e5
{[%clk 0:01:34.5]} 23. Kf2 {[%clk 0:01:44.3]} 23... exd4 {[%clk 0:01:31.1]} 24.
exd4 {[%clk 0:01:45.2]} 24... Nf8 {[%clk 0:01:27.4]} 25. Ra3 {[%clk 0:01:45.2]}
25... Ne6 {[%clk 0:01:23.8]} 26. Rad3 {[%clk 0:01:37.1]} 26... Bg5 {[%clk
0:01:19.6]} 27. Rd1 {[%clk 0:01:36.4]} 27... Bf4 {[%clk 0:01:19.6]} 28. Bg1
{[%clk 0:01:30.9]} 28... g5 {[%clk 0:01:18.1]} 29. Bf1 {[%clk 0:01:23.8]} 29...
Re7 {[%clk 0:01:14.7]} 30. Re1 {[%clk 0:01:23.2]} 30... Rce8 {[%clk 0:01:13.8]}
31. Re2 {[%clk 0:01:23.7]} 31... Nc7 {[%clk 0:01:04.5]} 32. Rxe7 {[%clk
0:01:21.1]} 32... Rxe7 {[%clk 0:01:05.4]} 33. Rd1 {[%clk 0:01:15.6]} 33... Be3+
{[%clk 0:01:01.9]} 34. Kg2 {[%clk 0:01:15.5]} 34... Bxg1 {[%clk 0:01:01.8]} 35.
Kxg1 {[%clk 0:01:16.4]} 35... Re3 {[%clk 0:01:01.1]} 36. Rd3 {[%clk 0:01:16.3]}
36... Rxd3 {[%clk 0:00:19.1]} 37. Bxd3 {[%clk 0:01:17.2]} 37... Ne6 {[%clk
0:00:19.6]} 38. Bf5 {[%clk 0:01:17.6]} 38... Nxd4 {[%clk 0:00:19.9]} 39. Bc8
{[%clk 0:01:18.5]} 39... Nc2 {[%clk 0:00:20.1]} 40. Bxb7 {[%clk 0:01:18.7]}
40... Nxb4 {[%clk 0:00:20.7]} 41. Kf2 {[%clk 0:01:13.9]} 41... Kf8 {[%clk
0:00:21]} 42. Ke3 {[%clk 0:01:14.4]} 42... Ke7 {[%clk 0:00:21.2]} 43. Kd4 {[%clk
0:01:14.8]} 43... Kd7 {[%clk 0:00:20.6]} 44. Kc3 {[%clk 0:01:15.3]} 44... Kc7
{[%clk 0:00:20.4]} 45. Ba8 {[%clk 0:01:01.3]} 45... Kb8 {[%clk 0:00:20.5]} 46.
Kxb4 {[%clk 0:01:00.2]} 46... Kxa8 {[%clk 0:00:20.7]} 47. Kc3 {[%clk 0:00:59.4]}
47... Ka7 {[%clk 0:00:20.4]} 48. Kd4 {[%clk 0:00:56.4]} 48... a5 {[%clk
0:00:19.9]} 49. Ke5 {[%clk 0:00:56.6]} 49... Ka6 {[%clk 0:00:20.3]} 50. f4
{[%clk 0:00:50.2]} 50... gxf4 {[%clk 0:00:17.5]} 51. Kxf4 {[%clk 0:00:51.1]}
51... Kb5 {[%clk 0:00:16.3]} 52. h4 {[%clk 0:00:50.6]} 52... Kxc5 {[%clk
0:00:16.5]} 53. g5 {[%clk 0:00:38.7]} 53... h5 {[%clk 0:00:14.8]} 54. Ke5 {[%clk
0:00:35.5]} 54... d4 {[%clk 0:00:14.5]} 55. Kf6 {[%clk 0:00:35.3]} 55... d3
{[%clk 0:00:14.5]} 56. Kxf7 {[%clk 0:00:35.8]} 56... d2 {[%clk 0:00:14.8]} 57.
g6 {[%clk 0:00:36.3]} 57... d1=Q {[%clk 0:00:15.2]} 58. g7 {[%clk 0:00:37]}
58... Qf3+ {[%clk 0:00:14.9]} 59. Ke7 {[%clk 0:00:36.8]} 59... Qg4 {[%clk
0:00:13.5]} 60. g8=Q {[%clk 0:00:37.7]} 60... Qxg8 {[%clk 0:00:12.7]} 0-1

[Event "*** SCC Grand Prix: Titled Tuesday Blitz"]
[Site "Chess.com"]
[Date "2020.08.25"]
[Round "10"]
[White "BlackBoarder"]
[Black "mamey78"]
[Result "1/2-1/2"]
[WhiteElo "2537"]
[BlackElo "2438"]
[TimeControl "180+1"]
[EndTime "12:00:12 PDT"]
[Termination "Game drawn by repetition"]

1. e4 {[%clk 0:02:55.1]} 1... e5 {[%clk 0:02:58.5]} 2. Nf3 {[%clk 0:02:55.1]}
2... Nc6 {[%clk 0:02:58.1]} 3. d4 {[%clk 0:02:54.9]} 3... exd4 {[%clk
0:02:57.3]} 4. Bc4 {[%clk 0:02:54.7]} 4... Nf6 {[%clk 0:02:54.8]} 5. O-O {[%clk
0:02:54.1]} 5... Nxe4 {[%clk 0:02:53.9]} 6. Re1 {[%clk 0:02:54.4]} 6... d5
{[%clk 0:02:53.7]} 7. Bxd5 {[%clk 0:02:54.6]} 7... Qxd5 {[%clk 0:02:53.6]} 8.
Nc3 {[%clk 0:02:55]} 8... Qa5 {[%clk 0:02:51]} 9. Nxe4 {[%clk 0:02:55.1]} 9...
Be6 {[%clk 0:02:51]} 10. Neg5 {[%clk 0:02:55.5]} 10... O-O-O {[%clk 0:02:48.5]}
11. Nxe6 {[%clk 0:02:56]} 11... fxe6 {[%clk 0:02:49.2]} 12. Rxe6 {[%clk
0:02:56.3]} 12... Qd5 {[%clk 0:02:49.3]} 13. Qe2 {[%clk 0:02:55.8]} 13... h6
{[%clk 0:02:49.1]} 14. Bd2 {[%clk 0:02:53]} 14... Bc5 {[%clk 0:02:41.7]} 15. a3
{[%clk 0:02:43.8]} 15... Rhf8 {[%clk 0:02:37.8]} 16. Re1 {[%clk 0:02:39.5]}
16... d3 {[%clk 0:02:14.8]} 17. cxd3 {[%clk 0:02:33.5]} 17... Nd4 {[%clk
0:02:01.9]} 18. Nxd4 {[%clk 0:02:29]} 18... Bxd4 {[%clk 0:02:01.6]} 19. Rf1
{[%clk 0:01:53]} 19... Bxb2 {[%clk 0:01:53.7]} 20. Bb4 {[%clk 0:01:49.4]} 20...
Rf7 {[%clk 0:01:42.3]} 21. Re8 {[%clk 0:01:37.3]} 21... Bd4 {[%clk 0:01:37.2]}
22. Rxd8+ {[%clk 0:01:35.6]} 22... Qxd8 {[%clk 0:01:35.8]} 23. Bd2 {[%clk
0:01:07.1]} 23... Qd7 {[%clk 0:01:26.2]} 24. Be3 {[%clk 0:01:05.2]} 24... Re7
{[%clk 0:01:09.4]} 25. Qd2 {[%clk 0:00:17.7]} 25... b6 {[%clk 0:01:04.9]} 26. h3
{[%clk 0:00:15.9]} 26... Kb7 {[%clk 0:01:03.8]} 27. Re1 {[%clk 0:00:14.5]} 27...
Qd5 {[%clk 0:00:55.2]} 28. Bxd4 {[%clk 0:00:08]} 28... Rxe1+ {[%clk 0:00:55.9]}
29. Qxe1 {[%clk 0:00:08.3]} 29... Qxd4 {[%clk 0:00:56.8]} 30. Qe4+ {[%clk
0:00:07]} 30... Qxe4 {[%clk 0:00:55.9]} 31. dxe4 {[%clk 0:00:07.5]} 31... b5
{[%clk 0:00:55]} 32. Kf1 {[%clk 0:00:06.6]} 32... c5 {[%clk 0:00:52.9]} 33. Ke2
{[%clk 0:00:06.6]} 33... b4 {[%clk 0:00:52.9]} 34. axb4 {[%clk 0:00:04.7]} 34...
cxb4 {[%clk 0:00:52.6]} 35. Kd3 {[%clk 0:00:05.1]} 35... g5 {[%clk 0:00:49.5]}
36. Kc4 {[%clk 0:00:04.3]} 36... a5 {[%clk 0:00:44.9]} 37. g3 {[%clk 0:00:04.4]}
37... Kc6 {[%clk 0:00:42.3]} 38. e5 {[%clk 0:00:03.9]} 38... Kd7 {[%clk
0:00:37.8]} 39. f4 {[%clk 0:00:02.7]} 39... Ke6 {[%clk 0:00:37.7]} 40. Kb3
{[%clk 0:00:02.3]} 40... h5 {[%clk 0:00:35.4]} 41. fxg5 {[%clk 0:00:02.4]} 41...
Kxe5 {[%clk 0:00:32.8]} 42. h4 {[%clk 0:00:02.7]} 42... Kf5 {[%clk 0:00:31.9]}
43. Ka4 {[%clk 0:00:03.1]} 43... Kg6 {[%clk 0:00:30.5]} 44. Kb3 {[%clk
0:00:03.4]} 44... Kf5 {[%clk 0:00:30.3]} 45. Ka4 {[%clk 0:00:03.9]} 45... Kg6
{[%clk 0:00:28.1]} 46. Kb3 {[%clk 0:00:04.2]} 46... Kf5 {[%clk 0:00:27.6]}
1/2-1/2

[Event "*** SCC Grand Prix: Titled Tuesday Blitz"]
[Site "Chess.com"]
[Date "2020.08.25"]
[Round "10"]
[White "Morshynska"]
[Black "FearNoEvil12"]
[Result "0-1"]
[WhiteElo "2166"]
[BlackElo "1990"]
[TimeControl "180+1"]
[EndTime "12:00:13 PDT"]
[Termination "FearNoEvil12 won by checkmate"]

1. e4 {[%clk 0:03:00.9]} 1... a6 {[%clk 0:02:58.9]} 2. d4 {[%clk 0:03:00.4]}
2... b5 {[%clk 0:02:59.3]} 3. Nf3 {[%clk 0:02:57.6]} 3... Bb7 {[%clk 0:02:59.4]}
4. Bd3 {[%clk 0:02:57.7]} 4... e6 {[%clk 0:02:59.9]} 5. O-O {[%clk 0:02:57]}
5... Nf6 {[%clk 0:03:00.3]} 6. Qe2 {[%clk 0:02:56.5]} 6... d6 {[%clk 0:03:00.1]}
7. a4 {[%clk 0:02:55.6]} 7... b4 {[%clk 0:02:58.6]} 8. a5 {[%clk 0:02:55.1]}
8... Nbd7 {[%clk 0:02:58.8]} 9. e5 {[%clk 0:02:45.3]} 9... Nd5 {[%clk
0:02:57.1]} 10. Ng5 {[%clk 0:02:39.8]} 10... Qe7 {[%clk 0:02:39]} 11. Nxh7
{[%clk 0:02:29.6]} 11... Rxh7 {[%clk 0:02:36.4]} 12. Bxh7 {[%clk 0:02:30.5]}
12... g6 {[%clk 0:02:36.3]} 13. Re1 {[%clk 0:02:12.2]} 13... dxe5 {[%clk
0:02:33.8]} 14. dxe5 {[%clk 0:02:13.1]} 14... O-O-O {[%clk 0:02:26.3]} 15. Qg4
{[%clk 0:01:59.2]} 15... Bg7 {[%clk 0:02:05.3]} 16. Bg5 {[%clk 0:01:49.1]} 16...
Qf8 {[%clk 0:02:01.8]} 17. Bxd8 {[%clk 0:01:47.2]} 17... Qxd8 {[%clk 0:01:59.9]}
18. f4 {[%clk 0:01:31.3]} 18... Qh8 {[%clk 0:01:45.6]} 19. Bxg6 {[%clk
0:01:19.5]} 19... fxg6 {[%clk 0:01:45]} 20. Qxe6 {[%clk 0:01:16.7]} 20... Nxf4
{[%clk 0:01:35.1]} 21. Qg4 {[%clk 0:01:12.3]} 21... Bxe5 {[%clk 0:01:22.1]} 22.
Nd2 {[%clk 0:01:00.1]} 22... Bd4+ {[%clk 0:01:19.8]} 23. Kh1 {[%clk 0:00:52.9]}
23... Bxg2+ {[%clk 0:01:17.7]} 24. Qxg2 {[%clk 0:00:53.8]} 24... Nxg2 {[%clk
0:01:17.2]} 25. Kxg2 {[%clk 0:00:54.7]} 25... Qh4 {[%clk 0:01:06.3]} 26. Nf1
{[%clk 0:00:29.5]} 26... Qf2+ {[%clk 0:01:03]} 27. Kh3 {[%clk 0:00:28.1]} 27...
Nf6 {[%clk 0:00:48.5]} 28. Ng3 {[%clk 0:00:22.6]} 28... Nh5 {[%clk 0:00:38.5]}
29. Nxh5 {[%clk 0:00:20.2]} 29... gxh5 {[%clk 0:00:37.1]} 30. Rf1 {[%clk
0:00:16.4]} 30... Qxc2 {[%clk 0:00:34.3]} 31. Rad1 {[%clk 0:00:12.4]} 31... Be5
{[%clk 0:00:25.6]} 32. Kh4 {[%clk 0:00:09.6]} 32... Qxh2+ {[%clk 0:00:23.5]} 33.
Kg5 {[%clk 0:00:10.5]} 33... Qg3+ {[%clk 0:00:22.9]} 34. Kh6 {[%clk 0:00:09.2]}
34... h4 {[%clk 0:00:19.9]} 35. Rf8+ {[%clk 0:00:08.5]} 35... Kb7 {[%clk
0:00:18.1]} 36. Rff1 {[%clk 0:00:09.4]} 36... Qg7+ {[%clk 0:00:14]} 37. Kh5
{[%clk 0:00:09.2]} 37... Qg3 {[%clk 0:00:13.3]} 38. Kh6 {[%clk 0:00:09.3]} 38...
h3 {[%clk 0:00:12.9]} 39. b3 {[%clk 0:00:09.3]} 39... h2 {[%clk 0:00:12.1]} 40.
Rh1 {[%clk 0:00:08.9]} 40... Qg4 {[%clk 0:00:09.7]} 41. Rde1 {[%clk 0:00:06.2]}
41... Bf4+ {[%clk 0:00:08.1]} 42. Kh7 {[%clk 0:00:05.8]} 42... Qg5 {[%clk
0:00:08.1]} 43. Ref1 {[%clk 0:00:03.4]} 43... Be5 {[%clk 0:00:07.2]} 44. Rf7
{[%clk 0:00:02.1]} 44... Qh5+ {[%clk 0:00:04.8]} 45. Kg8 {[%clk 0:00:02.4]}
45... Qh8# {[%clk 0:00:03.8]} 0-1

[Event "*** SCC Grand Prix: Titled Tuesday Blitz"]
[Site "Chess.com"]
[Date "2020.08.25"]
[Round "10"]
[White "Vamostodorecto"]
[Black "GlennTipton"]
[Result "0-1"]
[WhiteElo "2321"]
[BlackElo "2436"]
[TimeControl "180+1"]
[EndTime "12:00:15 PDT"]
[Termination "GlennTipton won on time"]

1. d4 {[%clk 0:02:59.1]} 1... Nf6 {[%clk 0:02:59.2]} 2. c4 {[%clk 0:02:58.6]}
2... c5 {[%clk 0:02:59.4]} 3. d5 {[%clk 0:02:58.2]} 3... e6 {[%clk 0:03:00]} 4.
Nc3 {[%clk 0:02:57.8]} 4... exd5 {[%clk 0:03:00.7]} 5. cxd5 {[%clk 0:02:58.7]}
5... d6 {[%clk 0:03:01.4]} 6. e4 {[%clk 0:02:59]} 6... g6 {[%clk 0:03:01.9]} 7.
f4 {[%clk 0:02:59.8]} 7... Bg7 {[%clk 0:03:02]} 8. e5 {[%clk 0:03:00.6]} 8...
dxe5 {[%clk 0:03:01.6]} 9. fxe5 {[%clk 0:03:01]} 9... Ng4 {[%clk 0:03:00.9]} 10.
e6 {[%clk 0:03:00]} 10... Ne5 {[%clk 0:02:50.1]} 11. Bb5+ {[%clk 0:02:53.7]}
11... Ke7 {[%clk 0:02:45.3]} 12. d6+ {[%clk 0:02:32.1]} 12... Qxd6 {[%clk
0:02:42.1]} 13. Nd5+ {[%clk 0:02:20.5]} 13... Kxe6 {[%clk 0:02:41.7]} 14. Ne2
{[%clk 0:02:08.2]} 14... f5 {[%clk 0:02:18.1]} 15. Qb3 {[%clk 0:01:43.4]} 15...
c4 {[%clk 0:02:08.8]} 16. Bxc4 {[%clk 0:01:39.5]} 16... Nxc4 {[%clk 0:02:07.9]}
17. Qxc4 {[%clk 0:01:40.4]} 17... Kf7 {[%clk 0:01:24.4]} 18. Bf4 {[%clk
0:01:24.8]} 18... Be5 {[%clk 0:01:09.3]} 19. Rd1 {[%clk 0:01:08.3]} 19... Be6
{[%clk 0:01:03.9]} 20. Qb5 {[%clk 0:00:33.9]} 20... Bxf4 {[%clk 0:00:46.7]} 21.
Qxb7+ {[%clk 0:00:27.2]} 21... Qd7 {[%clk 0:00:39.5]} 22. Qxd7+ {[%clk 0:00:09]}
22... Nxd7 {[%clk 0:00:36.3]} 23. Nexf4 {[%clk 0:00:09.9]} 23... Bxd5 {[%clk
0:00:35.5]} 24. Rxd5 {[%clk 0:00:08]} 24... Nf6 {[%clk 0:00:33.3]} 25. Ra5
{[%clk 0:00:08.1]} 25... Rhe8+ {[%clk 0:00:32.9]} 26. Kf2 {[%clk 0:00:07.2]}
26... g5 {[%clk 0:00:33]} 27. Nd5 {[%clk 0:00:06.1]} 27... Ng4+ {[%clk
0:00:30.4]} 28. Kg3 {[%clk 0:00:04.7]} 28... Re5 {[%clk 0:00:30]} 29. h3 {[%clk
0:00:03.6]} 29... Ne3 {[%clk 0:00:29.6]} 30. Nxe3 {[%clk 0:00:02.9]} 30... Rxa5
{[%clk 0:00:29.2]} 31. Rf1 {[%clk 0:00:02.5]} 31... Kg6 {[%clk 0:00:29]} 32. Kf3
{[%clk 0:00:01.6]} 32... Rxa2 {[%clk 0:00:25.6]} 33. Nc4 {[%clk 0:00:02.2]}
33... Rc8 {[%clk 0:00:24.1]} 34. b3 {[%clk 0:00:02.4]} 34... Rc2 {[%clk
0:00:19.7]} 35. Rd1 {[%clk 0:00:02.2]} 35... Rc3+ {[%clk 0:00:20]} 36. Kf2
{[%clk 0:00:01.3]} 36... Rxb3 {[%clk 0:00:18.2]} 37. Rd6+ {[%clk 0:00:02.2]}
37... Kh5 {[%clk 0:00:17.9]} 38. Ne5 {[%clk 0:00:02.4]} 38... Rc2+ {[%clk
0:00:17.8]} 39. Kg1 {[%clk 0:00:02.2]} 39... g4 {[%clk 0:00:18.2]} 40. hxg4+
{[%clk 0:00:01.3]} 40... fxg4 {[%clk 0:00:18.3]} 41. Nf7 {[%clk 0:00:02]} 41...
g3 {[%clk 0:00:17.1]} 42. Rh6+ {[%clk 0:00:01.6]} 42... Kg4 {[%clk 0:00:17.4]}
43. Ne5+ {[%clk 0:00:01.3]} 43... Kf5 {[%clk 0:00:17.7]} 0-1

[Event "*** SCC Grand Prix: Titled Tuesday Blitz"]
[Site "Chess.com"]
[Date "2020.08.25"]
[Round "10"]
[White "Caterpiller35"]
[Black "shineatchess"]
[Result "1-0"]
[WhiteElo "2342"]
[BlackElo "2211"]
[TimeControl "180+1"]
[EndTime "12:00:15 PDT"]
[Termination "Caterpiller35 won on time"]

1. d4 {[%clk 0:02:59.4]} 1... Nf6 {[%clk 0:02:59.1]} 2. Bg5 {[%clk 0:02:58.5]}
2... d5 {[%clk 0:02:57.4]} 3. e3 {[%clk 0:02:58.5]} 3... c6 {[%clk 0:02:52.9]}
4. Nd2 {[%clk 0:02:57.3]} 4... Nbd7 {[%clk 0:02:52.4]} 5. f4 {[%clk 0:02:56.8]}
5... e6 {[%clk 0:02:47]} 6. Bd3 {[%clk 0:02:56.2]} 6... Qb6 {[%clk 0:02:44.9]}
7. Rb1 {[%clk 0:02:55.7]} 7... Bd6 {[%clk 0:02:42.3]} 8. Ngf3 {[%clk 0:02:55.7]}
8... c5 {[%clk 0:02:36.5]} 9. c3 {[%clk 0:02:55.1]} 9... Qc7 {[%clk 0:02:28.8]}
10. Ne5 {[%clk 0:02:53.5]} 10... b6 {[%clk 0:02:23.7]} 11. O-O {[%clk
0:02:29.5]} 11... Bb7 {[%clk 0:02:23.3]} 12. Qf3 {[%clk 0:02:28.9]} 12... h6
{[%clk 0:02:00.1]} 13. Bh4 {[%clk 0:02:27.9]} 13... O-O {[%clk 0:01:46.1]} 14.
g4 {[%clk 0:02:16.1]} 14... g6 {[%clk 0:01:17.9]} 15. g5 {[%clk 0:01:56.7]}
15... hxg5 {[%clk 0:01:13.5]} 16. Bxg5 {[%clk 0:01:57.6]} 16... Kg7 {[%clk
0:01:08.5]} 17. Rf2 {[%clk 0:01:29.3]} 17... Rh8 {[%clk 0:01:05.9]} 18. Rg2
{[%clk 0:01:28.3]} 18... Rag8 {[%clk 0:00:58.6]} 19. Rf1 {[%clk 0:01:03.7]}
19... Kf8 {[%clk 0:00:44.2]} 20. f5 {[%clk 0:00:36.5]} 20... gxf5 {[%clk
0:00:42.6]} 21. Bxf5 {[%clk 0:00:35.5]} 21... exf5 {[%clk 0:00:12.4]} 22. Qxf5
{[%clk 0:00:35.2]} 22... Bxe5 {[%clk 0:00:10.7]} 23. dxe5 {[%clk 0:00:34]} 23...
Qxe5 {[%clk 0:00:10]} 24. Qxe5 {[%clk 0:00:28.7]} 24... Nxe5 {[%clk 0:00:09.9]}
25. Bxf6 {[%clk 0:00:24.4]} 25... Rxg2+ {[%clk 0:00:09.3]} 26. Kxg2 {[%clk
0:00:23.6]} 26... Rg8+ {[%clk 0:00:09]} 27. Kh3 {[%clk 0:00:20.2]} 27... Bc8+
{[%clk 0:00:07.8]} 28. Kh4 {[%clk 0:00:18.4]} 28... Ng6+ {[%clk 0:00:06.9]} 29.
Kh5 {[%clk 0:00:16.2]} 29... Be6 {[%clk 0:00:04.4]} 30. e4 {[%clk 0:00:14.5]}
30... Ne7 {[%clk 0:00:02.8]} 31. Rf4 {[%clk 0:00:03.7]} 31... dxe4 {[%clk
0:00:02.4]} 32. Nxe4 {[%clk 0:00:03.8]} 32... Nd5 {[%clk 0:00:02.2]} 33. Rf2
{[%clk 0:00:01.7]} 33... Nxf6+ {[%clk 0:00:01.5]} 34. Nxf6 {[%clk 0:00:01.6]}
34... Rh8+ {[%clk 0:00:01.4]} 35. Kg5 {[%clk 0:00:01.6]} 1-0

[Event "*** SCC Grand Prix: Titled Tuesday Blitz"]
[Site "Chess.com"]
[Date "2020.08.25"]
[Round "10"]
[White "pavelalexandru07"]
[Black "creativity"]
[Result "1-0"]
[WhiteElo "2192"]
[BlackElo "2021"]
[TimeControl "180+1"]
[EndTime "12:00:15 PDT"]
[Termination "pavelalexandru07 won by resignation"]

1. e4 {[%clk 0:02:58.4]} 1... d6 {[%clk 0:02:57.1]} 2. d4 {[%clk 0:02:54.6]}
2... Nf6 {[%clk 0:02:56.4]} 3. Nc3 {[%clk 0:02:53.6]} 3... g6 {[%clk 0:02:55.9]}
4. f4 {[%clk 0:02:48.1]} 4... Bg7 {[%clk 0:02:54.2]} 5. Nf3 {[%clk 0:02:48]}
5... O-O {[%clk 0:02:53.7]} 6. Bd3 {[%clk 0:02:44.9]} 6... Na6 {[%clk
0:02:50.4]} 7. O-O {[%clk 0:02:38.4]} 7... Bg4 {[%clk 0:02:45.7]} 8. h3 {[%clk
0:02:30.4]} 8... Bxf3 {[%clk 0:02:44.5]} 9. Qxf3 {[%clk 0:02:31.3]} 9... Nb4
{[%clk 0:02:38.4]} 10. Be3 {[%clk 0:02:26.3]} 10... Nxd3 {[%clk 0:02:34.7]} 11.
cxd3 {[%clk 0:02:19.1]} 11... c6 {[%clk 0:02:26.4]} 12. Rad1 {[%clk 0:02:05.4]}
12... d5 {[%clk 0:02:23.3]} 13. e5 {[%clk 0:01:46.2]} 13... Nd7 {[%clk
0:02:16.6]} 14. f5 {[%clk 0:01:32.3]} 14... gxf5 {[%clk 0:02:05.7]} 15. Qxf5
{[%clk 0:01:26.4]} 15... e6 {[%clk 0:01:57.3]} 16. Qh5 {[%clk 0:01:22.1]} 16...
f5 {[%clk 0:01:48.4]} 17. exf6 {[%clk 0:01:14]} 17... Rxf6 {[%clk 0:01:43.2]}
18. Bg5 {[%clk 0:01:07.6]} 18... Rxf1+ {[%clk 0:01:42.2]} 19. Rxf1 {[%clk
0:01:07.4]} 19... Qe8 {[%clk 0:01:42.3]} 20. Qg4 {[%clk 0:01:04]} 20... Qg6
{[%clk 0:01:39.2]} 21. Ne2 {[%clk 0:00:34.2]} 21... h6 {[%clk 0:01:01.8]} 22.
Nf4 {[%clk 0:00:32.9]} 22... Qxg5 {[%clk 0:01:00.9]} 23. Qxe6+ {[%clk
0:00:32.8]} 23... Kh7 {[%clk 0:00:59.8]} 24. Qxd7 {[%clk 0:00:33.2]} 24... Rd8
{[%clk 0:00:57.9]} 25. Qxb7 {[%clk 0:00:29.1]} 25... Kh8 {[%clk 0:00:55.6]} 26.
Qxc6 {[%clk 0:00:20]} 26... Bxd4+ {[%clk 0:00:52.5]} 27. Kh1 {[%clk 0:00:20.2]}
27... Be5 {[%clk 0:00:51.5]} 28. Ng6+ {[%clk 0:00:15.5]} 28... Kg7 {[%clk
0:00:49.5]} 29. Nxe5 {[%clk 0:00:10.3]} 29... Qxe5 {[%clk 0:00:46.6]} 30. Qb7+
{[%clk 0:00:10.4]} 30... Kh8 {[%clk 0:00:40.7]} 31. Qxa7 {[%clk 0:00:10.7]}
31... Rg8 {[%clk 0:00:38.3]} 32. Qf7 {[%clk 0:00:11]} 32... Qg3 {[%clk
0:00:37.1]} 33. Qf6+ {[%clk 0:00:11.1]} 33... Rg7 {[%clk 0:00:36.4]} 34. Qf8+
{[%clk 0:00:10.9]} 34... Kh7 {[%clk 0:00:36]} 35. Qf5+ {[%clk 0:00:11.3]} 35...
Kh8 {[%clk 0:00:33.1]} 36. Qf3 {[%clk 0:00:11.9]} 36... Qc7 {[%clk 0:00:30.5]}
37. Qxd5 {[%clk 0:00:10.1]} 37... Qg3 {[%clk 0:00:26.5]} 38. Qd8+ {[%clk
0:00:06.5]} 38... Kh7 {[%clk 0:00:25.9]} 39. Rg1 {[%clk 0:00:06.1]} 39... Rc7
{[%clk 0:00:20.4]} 40. Qd5 {[%clk 0:00:05.4]} 40... Rf7 {[%clk 0:00:17]} 41.
Qxf7+ {[%clk 0:00:04.7]} 41... Kh8 {[%clk 0:00:16.3]} 42. Rf1 {[%clk 0:00:03.8]}
42... Qg7 {[%clk 0:00:15.2]} 43. Qxg7+ {[%clk 0:00:03.8]} 43... Kxg7 {[%clk
0:00:14.7]} 44. d4 {[%clk 0:00:04.7]} 44... Kg6 {[%clk 0:00:14.4]} 45. d5 {[%clk
0:00:05.6]} 45... h5 {[%clk 0:00:14.8]} 46. d6 {[%clk 0:00:06.5]} 46... h4
{[%clk 0:00:15]} 47. d7 {[%clk 0:00:07.4]} 1-0